bitfinex/quotes_SOLUSD_20241116
["timestamp","ask_amount","ask_price","bid_price","bid_amount"]
[1731762542410,0.34465462,220.57,220.42,8.69252328]
[1731762542611,0.517778,220.59,220.44,8.69252328]
[1731762542612,0.12549,220.58,220.44,8.69252328]
[1731762542909,0.12549,220.58,220.45,8.69252328]
[1731762544014,0.12549,220.58,220.47,8.69252328]
[1731762544197,0.517778,220.59,220.47,8.69252328]
[1731762545621,0.517778,220.59,220.46,8.69252328]
[1731762545917,0.517778,220.59,220.48,8.69252328]
[1731762546117,0.517778,220.59,220.46,8.69252328]
[1731762546320,0.12549,220.58,220.46,8.69252328]
[1731762546920,0.517778,220.59,220.46,8.69252328]
[1731762547097,0.517778,220.59,220.49,22.31252328]
[1731762547297,0.517778,220.59,220.5,8.69252328]
[1731762547804,0.517778,220.59,220.51,8.69252328]
[1731762548117,0.517778,220.59,220.5,13.62]
[1731762548321,0.517778,220.59,220.52,8.69252328]
[1731762549020,0.517778,220.59,220.53,8.69252328]
[1731762549251,0.517778,220.59,220.58,22.31252328]
[1731762549517,0.517778,220.59,220.58,46.08940728]
[1731762550520,0.517778,220.59,220.58,50.62290728]
[1731762552010,0.517778,220.59,220.58,37.00290728]
[1731762553514,0.517778,220.59,220.58,23.776884]
[1731762553723,0.517778,220.59,220.54,13.62]
[1731762553724,0.517778,220.59,220.57,8.69252328]
[1731762554524,0.517778,220.59,220.55,23.776884]
[1731762554720,0.517778,220.59,220.57,8.69252328]
[1731762554927,0.517778,220.59,220.58,8.69252328]
[1731762555144,0.517778,220.59,220.58,32.46940728]
[1731762555645,0.517778,220.59,220.58,37.00290728]
[1731762556022,7.60131532,220.81,220.64,13.62]
[1731762556221,0.517778,220.81,220.65,23.776884]
[1731762556413,0.517778,220.81,220.69,8.69252328]
[1731762557319,0.517778,220.81,220.68,8.69252328]
[1731762557638,0.25098,220.8,220.65,8.69252328]
[1731762557813,0.09367462,220.79,220.6,23.776884]
[1731762558018,0.09367462,220.79,220.64,8.69252328]
[1731762558318,0.09367462,220.79,220.65,8.69252328]
[1731762558930,0.09367462,220.79,220.65,13.54855722]
[1731762560339,0.09367462,220.79,220.64,13.54855722]
[1731762560543,0.09367462,220.79,220.65,13.54855722]
[1731762562432,0.25098,220.8,220.65,13.54855722]
[1731762562627,0.25098,220.8,220.66,13.54855722]
[1731762563533,0.09367462,220.79,220.61,15.865]
[1731762563843,0.09367462,220.79,220.64,13.54855722]
[1731762564144,0.09367462,220.79,220.63,13.54855722]
[1731762565132,0.09367462,220.79,220.64,13.54855722]
[1731762565326,0.09367462,220.79,220.65,13.54855722]
[1731762566744,0.09367462,220.79,220.64,13.54855722]
[1731762567048,0.09367462,220.79,220.65,13.62]
[1731762567747,0.09367462,220.77,220.61,13.54855722]
[1731762567940,0.09367462,220.75,220.61,13.54855722]
[1731762568153,0.12549,220.74,220.61,13.54855722]
[1731762568344,0.25098,220.74,220.61,13.54855722]
[1731762569137,0.25098,220.74,220.59,13.62]
[1731762569353,0.25098,220.74,220.57,4.5335]
[1731762569354,0.12549,220.72,220.57,13.54855722]
[1731762569672,0.09367462,220.71,220.56,27.16855722]
[1731762569861,0.21916462,220.71,220.56,27.16855722]
[1731762570155,0.25098,220.7,220.55,13.54855722]
[1731762570753,0.25098,220.7,220.55,27.16855722]
[1731762571769,0.25098,220.7,220.56,13.54855722]
[1731762572163,0.12549,220.71,220.6,13.54855722]
[1731762572455,2.50494016,220.77,220.61,13.54855722]
[1731762572855,0.09367462,220.76,220.59,13.54855722]
[1731762573062,0.19367462,220.76,220.57,13.62]
[1731762573356,0.09367462,220.74,220.58,13.54855722]
[1731762573734,0.09367462,220.72,220.58,13.54855722]
[1731762573947,0.12549,220.71,220.58,13.54855722]
[1731762574348,0.25098,220.71,220.58,13.54855722]
[1731762575143,0.25098,220.71,220.58,27.16855722]
[1731762575652,2.50494016,220.75,220.58,27.16855722]
[1731762575836,3.02271816,220.81,220.63,27.16855722]
[1731762576036,3.02271816,220.81,220.65,13.54855722]
[1731762576458,0.09367462,220.8,220.65,13.54855722]
[1731762576943,0.09367462,220.8,220.64,13.54855722]
[1731762577262,0.12549,220.79,220.64,13.54855722]
[1731762577755,0.09367462,220.8,220.64,13.54855722]
[1731762578639,0.09367462,220.8,220.63,27.16855722]
[1731762578955,0.34465462,220.8,220.63,27.16855722]
[1731762579160,0.09367462,220.78,220.61,27.16855722]
[1731762579338,0.34465462,220.78,220.61,27.16855722]
[1731762579533,0.34465462,220.78,220.62,13.54855722]
[1731762579957,0.25098,220.78,220.63,13.54855722]
[1731762580163,0.25098,220.8,220.65,13.54855722]
[1731762580357,0.09367462,220.79,220.64,27.16855722]
[1731762583080,0.09367462,220.79,220.64,13.54855722]
[1731762583284,0.09367462,220.79,220.63,27.16855722]
[1731762583679,0.09367462,220.79,220.63,13.62]
[1731762583856,20.09367462,220.79,220.62,13.54855722]
[1731762584060,0.21916462,220.77,220.62,13.54855722]
[1731762584357,0.21916462,220.77,220.61,11.3322]
[1731762584358,0.21916462,220.75,220.61,27.16855722]
[1731762584554,0.25098,220.74,220.61,13.62]
[1731762584760,0.12549,220.74,220.61,13.62]
[1731762585062,0.12549,220.74,220.62,13.54855722]
[1731762585385,0.12549,220.74,220.63,13.54855722]
[1731762586060,0.0206795,220.74,220.63,13.54855722]
[1731762586393,0.12549,220.8,220.64,13.54855722]
[1731762586679,0.09367462,220.79,220.64,13.54855722]
[1731762586880,0.09367462,220.79,220.64,8.67181299]
[1731762587486,0.09367462,220.79,220.63,13.62]
[1731762587790,0.09367462,220.79,220.63,22.29181299]
[1731762587967,0.21916462,220.79,220.64,8.67181299]
[1731762588166,0.12549,220.78,220.64,8.67181299]
[1731762591463,0.12549,220.78,220.63,22.29181299]
[1731762591672,0.517778,220.81,220.72,13.62]
[1731762591870,0.517778,220.81,220.71,8.67181299]
[1731762592084,0.09367462,220.8,220.64,32.44869699]
[1731762592286,0.09367462,220.8,220.63,15.8633]
[1731762593372,0.12549,220.79,220.63,15.8633]
[1731762593570,0.12549,220.79,220.64,23.776884]
[1731762598183,0.12549,220.79,220.54,0.1]
[1731762598184,0.34465462,220.75,220.53,24.956]
[1731762598388,0.25098,220.75,220.59,22.29181299]
[1731762598583,0.12549,220.75,220.63,8.67181299]
[1731762598899,0.12549,220.75,220.6,22.29181299]
[1731762599071,0.12549,220.75,220.61,8.67181299]
[1731762599495,0.12549,220.75,220.62,23.776884]
[1731762600075,0.09367462,220.8,220.62,23.776884]
[1731762600392,0.09367462,220.78,220.62,23.776884]
[1731762600579,0.25098,220.77,220.62,32.44869699]
[1731762600778,0.12549,220.78,220.65,8.67181299]
[1731762601482,3.20069486,220.81,220.67,23.776884]
[1731762601680,3.20069486,220.81,220.67,32.44869699]
[1731762601878,0.517778,220.81,220.68,13.62]
[1731762602080,0.517778,220.81,220.68,22.29181299]
[1731762602899,0.517778,220.81,220.68,13.62]
[1731762603896,0.34465462,220.8,220.62,13.62]
[1731762604105,3.12018266,220.8,220.62,13.62]
[1731762604296,3.12018266,220.8,220.62,22.29181299]
[1731762604894,3.12018266,220.8,220.62,13.62]
[1731762605705,3.12018266,220.8,220.64,13.62]
[1731762606207,2.77552804,220.8,220.68,13.62]
[1731762606503,0.517778,220.81,220.68,13.62]
[1731762611102,0.517778,220.81,220.7,13.62]
[1731762612207,0.517778,220.81,220.68,13.62]
[1731762612592,0.517778,220.81,220.69,23.776884]
[1731762613595,0.517778,220.81,220.7,8.67181299]
[1731762614193,0.517778,220.81,220.69,50.59979699]
[1731762615094,0.517778,220.81,220.71,22.29181299]
[1731762615292,0.517778,220.81,220.71,13.62]
[1731762616113,0.517778,220.81,220.71,23.776884]
[1731762616402,0.517778,220.81,220.72,13.62]
[1731762619017,0.517778,220.81,220.73,23.776884]
[1731762619223,0.517778,220.81,220.71,13.62]
[1731762619396,0.517778,220.81,220.72,23.776884]
[1731762619714,0.517778,220.81,220.68,13.62]
[1731762620319,0.517778,220.81,220.67,13.62]
[1731762621210,0.517778,220.81,220.68,13.62]
[1731762621401,0.517778,220.81,220.69,23.776884]
[1731762621716,0.517778,220.81,220.7,13.62]
[1731762622707,0.517778,220.81,220.66,13.58]
[1731762622901,0.517778,220.81,220.68,13.58]
[1731762624122,0.517778,220.81,220.69,13.58]
[1731762626215,0.517778,220.81,220.69,37.356884]
[1731762626422,0.517778,220.81,220.69,13.58]
[1731762628220,0.517778,220.81,220.69,37.356884]
[1731762628404,0.517778,220.81,220.7,13.58]
[1731762628606,0.517778,220.81,220.71,37.356884]
[1731762632016,0.517778,220.81,220.71,46.02869699]
[1731762633729,0.517778,220.81,220.76,23.776884]
[1731762633907,0.517778,220.81,220.77,13.58]
[1731762634826,0.517778,220.81,220.76,13.58]
[1731762635626,0.517778,220.81,220.77,37.356884]
[1731762641432,0.517778,220.81,220.73,13.58]
[1731762643042,0.517778,220.81,220.74,37.356884]
[1731762648628,0.517778,220.81,220.74,46.02869699]
[1731762648829,0.517778,220.81,220.74,37.356884]
[1731762649026,0.517778,220.81,220.74,46.02869699]
[1731762649540,0.517778,220.81,220.74,37.356884]
[1731762649837,0.517778,220.81,220.77,23.776884]
[1731762650921,0.517778,220.81,220.76,37.356884]
[1731762653130,0.517778,220.81,220.76,46.02869699]
[1731762656143,0.517778,220.81,220.78,13.58]
[1731762656525,0.517778,220.81,220.79,37.356884]
[1731762660138,0.517778,220.81,220.76,13.58]
[1731762660342,0.517778,220.81,220.77,23.776884]
[1731762660544,0.517778,220.81,220.76,37.356884]
[1731762662242,0.517778,220.81,220.72,13.58]
[1731762663249,0.517778,220.81,220.71,13.58]
[1731762663652,0.517778,220.81,220.72,23.776884]
[1731762664555,0.517778,220.81,220.75,23.776884]
[1731762665245,0.517778,220.81,220.71,4.5307]
[1731762665246,0.517778,220.81,220.73,37.356884]
[1731762666948,0.517778,220.81,220.77,13.58]
[1731762667155,0.517778,220.81,220.8,23.776884]
[1731762668460,0.517778,220.81,220.76,13.58]
[1731762668664,0.517778,220.81,220.77,37.356884]
[1731762668846,0.517778,220.81,220.77,23.776884]
[1731762669865,0.517778,220.81,220.76,37.356884]
[1731762670360,0.517778,220.81,220.76,46.02869699]
[1731762670864,0.517778,220.81,220.8,37.356884]
[1731762671350,0.517778,220.81,220.78,13.58]
[1731762671659,0.517778,220.81,220.79,23.776884]
[1731762671836,0.517778,220.81,220.78,23.776884]
[1731762672451,0.517778,220.81,220.75,23.776884]
[1731762675147,0.517778,220.81,220.73,37.356884]
[1731762675871,0.517778,220.81,220.73,23.776884]
[1731762677171,0.517778,220.81,220.7,41.9141493]
[1731762677369,0.517778,220.81,220.7,13.58]
[1731762677875,0.517778,220.81,220.71,8.67181299]
[1731762678060,0.517778,220.81,220.7,22.25181299]
[1731762678459,0.517778,220.81,220.68,53.2423493]
[1731762678668,0.517778,220.81,220.69,22.25181299]
[1731762678971,0.517778,220.81,220.67,28.3341493]
[1731762679175,0.25098,220.8,220.66,8.67181299]
[1731762679554,0.25098,220.8,220.64,13.58]
[1731762679749,0.09367462,220.79,220.64,8.67181299]
[1731762679949,0.09367462,220.77,220.61,28.3341493]
[1731762680148,0.34465462,220.75,220.59,28.3341493]
[1731762680462,0.34465462,220.73,220.57,37.00596229]
[1731762680851,3.02757148,220.73,220.57,37.00596229]
[1731762681049,3.02757148,220.73,220.58,8.67181299]
[1731762681460,0.25098,220.71,220.57,8.67181299]
[1731762681674,0.25098,220.71,220.59,23.776884]
[1731762681879,2.68291686,220.72,220.57,23.776884]
[1731762682052,2.68291686,220.72,220.61,23.776884]
[1731762682254,0.25098,220.78,220.63,32.44869699]
[1731762682455,2.93389686,220.78,220.64,32.44869699]
[1731762682681,2.93389686,220.78,220.64,23.776884]
[1731762682885,2.80840686,220.78,220.63,23.776884]
[1731762683968,0.09367462,220.77,220.58,0.09367462]
[1731762684278,0.21916462,220.77,220.62,23.776884]
[1731762684577,0.25098,220.76,220.62,23.776884]
[1731762685284,0.09367462,220.75,220.56,44.2025493]
[1731762685481,0.35098,220.72,220.56,8.67181299]
[1731762685692,0.35098,220.72,220.54,28.3341493]
[1731762685888,0.35098,220.72,220.57,8.67181299]
[1731762686681,0.35098,220.72,220.58,23.776884]
[1731762686682,0.25098,220.72,220.58,23.776884]
[1731762686963,2.68291686,220.74,220.58,32.44869699]
[1731762687163,0.12549,220.73,220.59,8.67181299]
[1731762687463,0.25098,220.73,220.59,8.67181299]
[1731762687881,0.25098,220.73,220.58,32.44869699]
[1731762688280,0.12549,220.72,220.53,32.8685493]
[1731762688590,0.12549,220.72,220.58,8.67181299]
[1731762688972,0.25098,220.73,220.55,0.09367462]
[1731762689293,0.25098,220.73,220.58,8.67181299]
[1731762689506,0.25098,220.73,220.59,23.776884]
[1731762690075,0.25098,220.73,220.58,23.776884]
[1731762690271,0.12549,220.71,220.53,39.6704493]
[1731762690488,0.12549,220.7,220.56,23.776884]
[1731762690787,0.12549,220.7,220.54,23.776884]
[1731762690995,0.12549,220.7,220.55,8.67181299]
[1731762691179,0.12549,220.7,220.54,8.67181299]
[1731762692390,0.12549,220.7,220.56,8.67181299]
[1731762692586,0.12549,220.7,220.53,15.8708]
[1731762692587,0.25098,220.73,220.58,23.776884]
[1731762692974,2.68291686,220.74,220.6,8.67181299]
[1731762693169,0.1,220.78,220.61,23.776884]
[1731762693481,2.78291686,220.79,220.6,23.776884]
[1731762693482,0.1,220.76,220.6,23.776884]
[1731762694380,0.1,220.76,220.53,11.3363]
[1731762694381,0.21916462,220.74,220.53,11.3363]
[1731762694692,0.09367462,220.73,220.58,23.776884]
[1731762694893,0.34465462,220.73,220.58,23.776884]
[1731762695581,0.34465462,220.73,220.54,4.5342]
[1731762695781,0.34465462,220.73,220.58,23.776884]
[1731762696397,0.34465462,220.73,220.58,32.44869699]
[1731762696807,0.34465462,220.73,220.58,23.776884]
[1731762698000,0.34465462,220.73,220.58,32.44869699]
[1731762698379,0.34465462,220.73,220.58,23.776884]
[1731762698790,0.34465462,220.69,220.48,11.3385]
[1731762698987,0.34465462,220.69,220.49,8.67181299]
[1731762699199,0.34465462,220.67,220.49,8.67181299]
[1731762700085,0.34465462,220.67,220.5,23.776884]
[1731762700488,0.34465462,220.67,220.37,28.3341493]
[1731762700489,0.25098,220.62,220.43,24.54921299]
[1731762700694,0.25098,220.6,220.43,20.01281299]
[1731762701688,2.93389686,220.6,220.43,8.67181299]
[1731762702008,2.93389686,220.6,220.46,8.67181299]
[1731762702180,0.35098,220.67,220.52,8.67181299]
[1731762702577,2.68291686,220.68,220.54,8.67181299]
[1731762703084,2.78291686,220.68,220.54,8.67181299]
[1731762703279,2.68291686,220.68,220.58,8.67181299]
[1731762703489,2.68291686,220.68,220.56,8.67181299]
[1731762704196,1.586,220.67,220.55,8.67181299]
[1731762704502,1.586,220.67,220.51,23.776884]
[1731762704681,0.09367462,220.66,220.51,8.67181299]
[1731762704887,3.02757148,220.66,220.5,8.67181299]
[1731762705208,0.34465462,220.66,220.49,8.67181299]
[1731762705382,0.34465462,220.64,220.49,8.67181299]
[1731762705584,0.44465462,220.64,220.49,8.67181299]
[1731762705908,20.54465462,220.64,220.47,8.67181299]
[1731762706283,20.54465462,220.64,220.44,11.3408]
[1731762706284,0.34465462,220.62,220.48,8.67181299]
[1731762706488,0.34465462,220.62,220.43,4.5364]
[1731762706489,0.34465462,220.6,220.43,13.58]
[1731762706685,0.34465462,220.6,220.45,8.67181299]
[1731762706989,0.34465462,220.6,220.45,13.57438164]
[1731762707291,20.34465462,220.6,220.44,13.57438164]
[1731762707488,23.02757148,220.6,220.43,13.57438164]
[1731762707898,0.34465462,220.58,220.43,13.57438164]
[1731762708314,0.25098,220.56,220.44,13.57438164]
[1731762708681,1.5867,220.57,220.47,13.57438164]
[1731762709701,1.5867,220.57,220.46,13.57438164]
[1731762709889,1.5867,220.57,220.45,13.57438164]
[1731762711805,0.25098,220.56,220.41,13.57438164]
[1731762712004,0.25098,220.56,220.42,13.57438164]
[1731762712395,1.5867,220.57,220.42,13.57438164]
[1731762712798,1.5867,220.57,220.43,13.57438164]
[1731762712987,1.5867,220.57,220.48,13.57438164]
[1731762713497,1.5862,220.64,220.49,13.57438164]
[1731762713700,1.5862,220.64,220.5,13.57438164]
[1731762714091,75.24991405,220.6,220.5,13.57438164]
[1731762714314,70.24403949,220.51,220.4,0.13918597]
[1731762714605,42.14643126,220.46,220.45,13.58]
[1731762714812,51.5335144,220.46,220.45,13.58]
[1731762714986,54.72399977,220.46,220.45,13.58]
[1731762715187,70.24403949,220.51,220.45,13.58]
[1731762715606,84.29281251,220.52,220.45,13.58]
[1731762715802,84.29281251,220.52,220.48,13.57438164]
[1731762716010,84.74621251,220.52,220.48,13.57438164]
[1731762716415,0.4534,220.52,220.48,13.57438164]
[1731762716912,23.776884,220.59,220.48,13.57438164]
[1731762717104,20.0,220.58,220.47,13.57438164]
[1731762717803,20.0,220.58,220.48,13.57438164]
[1731762718014,0.4533,220.57,220.48,13.57438164]
[1731762718433,0.4533,220.57,220.49,13.57438164]
[1731762718638,0.4533,220.57,220.48,13.57438164]
[1731762719216,0.4533,220.57,220.52,28.3341493]
[1731762719434,1.1332,220.6,220.52,28.3341493]
[1731762720427,23.776884,220.57,220.52,28.3341493]
[1731762720620,20.0,220.56,220.5,28.3341493]
[1731762721154,20.0,220.56,220.46,42.15366789]
[1731762721322,20.0,220.56,220.44,13.57438164]
[1731762721834,1.5869,220.55,220.44,13.57438164]
[1731762722443,20.0,220.53,220.41,13.57438164]
[1731762722738,20.0,220.53,220.42,13.57438164]
[1731762723041,20.0,220.53,220.43,13.57438164]
[1731762723242,3.8539,220.55,220.43,13.57438164]
[1731762723625,3.8539,220.55,220.45,13.57438164]
[1731762723820,1.5869,220.55,220.46,13.57438164]
[1731762724021,1.5869,220.55,220.47,13.57438164]
[1731762724231,0.9067,220.56,220.47,13.57438164]
[1731762724435,0.9067,220.56,220.48,13.57438164]
[1731762724746,0.9067,220.56,220.5,13.57438164]
[1731762724921,0.9067,220.56,220.51,13.57438164]
[1731762725124,74.32123913,220.55,220.51,3.47098707]
[1731762725325,80.96948679,220.54,220.49,13.57438164]
[1731762725524,74.32123913,220.53,220.49,13.57438164]
[1731762725754,84.29281251,220.51,220.49,13.57438164]
[1731762725933,21.67901492,220.5,220.45,13.58]
[1731762726131,70.24838557,220.47,220.45,13.58]
[1731762726632,70.24838557,220.47,220.46,27.15438164]
[1731762727246,84.29281251,220.51,220.46,13.57438164]
[1731762727549,85.19981251,220.51,220.47,13.57438164]
[1731762727738,0.907,220.51,220.47,13.57438164]
[1731762728547,0.907,220.51,220.43,13.58]
[1731762728548,0.907,220.51,220.46,13.57438164]
[1731762728848,1.007,220.51,220.44,13.57438164]
[1731762729155,74.42690132,220.5,220.38,32.8715493]
[1731762729357,0.1,220.47,220.4,13.57438164]
[1731762729542,0.1,220.48,220.38,41.90853094]
[1731762729543,0.1,220.44,220.38,41.90853094]
[1731762729866,0.1,220.44,220.39,13.57438164]
[1731762729867,124.85712979,220.43,220.39,13.57438164]
[1731762730027,43.36202258,220.42,220.39,13.57438164]
[1731762730228,84.48590804,220.4,220.39,13.57438164]
[1731762730543,127.84793062,220.4,220.39,13.57438164]
[1731762730749,158.81280936,220.4,220.39,13.57438164]
[1731762731253,106.16325351,220.4,220.39,13.57438164]
[1731762731458,85.39330804,220.4,220.38,28.3341493]
[1731762731655,20.1,220.39,220.38,28.3341493]
[1731762732254,0.1,220.39,220.38,28.3341493]
[1731762732854,0.2,220.39,220.38,28.3341493]
[1731762733772,0.9074,220.4,220.38,28.3341493]
[1731762734270,1.361,220.42,220.38,28.3341493]
[1731762735066,1.361,220.42,220.37,13.57438164]
[1731762735751,1.361,220.42,220.38,13.57438164]
[1731762736947,1.3609,220.44,220.37,13.57438164]
[1731762737153,0.1,220.43,220.36,13.57438164]
[1731762738764,1.361,220.42,220.36,13.57438164]
[1731762739882,1.3609,220.44,220.4,13.57438164]
[1731762740184,1.3609,220.44,220.39,13.57438164]
[1731762741349,1.3609,220.44,220.38,13.57438164]
[1731762741867,0.1,220.47,220.38,13.57438164]
[1731762742076,1.4607,220.46,220.38,13.57438164]
[1731762743262,1.4607,220.46,220.39,13.57438164]
[1731762743778,0.1,220.58,220.49,0.25098]
[1731762743779,1.36,220.58,220.49,0.25098]
[1731762743964,1.3598,220.62,220.55,13.57438164]
[1731762744271,0.1,220.6,220.55,13.57438164]
[1731762744653,0.1,220.6,220.53,13.57438164]
[1731762744887,0.1,220.58,220.45,0.25098]
[1731762745180,0.1,220.56,220.48,13.57438164]
[1731762745476,0.1,220.56,220.49,13.58]
[1731762745678,1.3602,220.55,220.49,13.58]
[1731762746176,1.3602,220.55,220.49,27.15438164]
[1731762746778,1.4602,220.55,220.47,27.15438164]
[1731762747077,1.4602,220.55,220.47,13.57438164]
[1731762748254,1.4602,220.55,220.45,0.12549]
[1731762748255,1.4602,220.55,220.46,13.57438164]
[1731762748452,0.1,220.53,220.45,13.57438164]
[1731762748656,0.1,220.53,220.46,13.57438164]
[1731762749082,1.4602,220.55,220.46,13.57438164]
[1731762749489,0.1,220.67,220.54,27.15438164]
[1731762749490,1.3596,220.64,220.54,27.15438164]
[1731762749787,1.3596,220.64,220.59,13.57438164]
[1731762750083,1.3595,220.66,220.61,13.57438164]
[1731762750383,0.1,220.64,220.59,13.57438164]
[1731762750972,0.1,220.64,220.57,13.57438164]
[1731762750973,1.3597,220.63,220.57,13.57438164]
[1731762754690,2.26578264,220.73,220.63,13.67367462]
[1731762754988,1.3591,220.73,220.69,13.57438164]
[1731762755459,1.4591,220.73,220.66,13.57438164]
[1731762755665,1.4591,220.73,220.65,13.57438164]
[1731762755666,0.1,220.71,220.65,13.57438164]
[1731762756497,1.3591,220.73,220.68,13.57438164]
[1731762756998,1.3591,220.73,220.68,13.58]
[1731762757371,1.3591,220.73,220.67,35.25077168]
[1731762758489,1.3591,220.73,220.68,21.67077168]
[1731762758703,1.4592,220.72,220.68,21.67077168]
[1731762759290,1.4592,220.72,220.67,35.25077168]
[1731762759507,1.4592,220.72,220.67,13.58]
[1731762759880,1.3592,220.72,220.67,13.58]
[1731762760087,1.4592,220.72,220.67,13.58]
[1731762760299,1.4592,220.72,220.67,21.67077168]
[1731762760476,1.4592,220.72,220.66,21.67077168]
[1731762760983,1.4592,220.72,220.68,21.67077168]
[1731762761292,1.3592,220.72,220.68,21.67077168]
[1731762761473,1.3592,220.72,220.69,21.67077168]
[1731762761896,1.3592,220.72,220.64,0.12549]
[1731762762096,1.3592,220.72,220.7,21.67077168]
[1731762762287,1.3592,220.72,220.69,21.67077168]
[1731762762797,1.3588,220.77,220.71,21.67077168]
[1731762762976,1.3588,220.77,220.7,21.67077168]
[1731762763384,0.1,220.76,220.72,21.67077168]
[1731762763584,1.3588,220.78,220.72,21.67077168]
[1731762763799,0.1,220.76,220.72,21.67077168]
[1731762763986,1.3587,220.8,220.74,35.25077168]
[1731762764504,1.3587,220.8,220.77,21.67077168]
[1731762765389,0.517778,220.81,220.77,21.67077168]
[1731762767192,0.517778,220.81,220.75,21.67077168]
[1731762767395,0.617778,220.81,220.75,21.67077168]
[1731762767591,0.617778,220.81,220.73,21.67077168]
[1731762768201,1.3586,220.8,220.73,21.67077168]
[1731762768508,1.3586,220.8,220.75,21.67077168]
[1731762768689,1.3586,220.8,220.76,13.58]
[1731762769089,0.517778,220.81,220.77,21.67077168]
[1731762769416,1.876378,220.81,220.77,21.67077168]
[1731762769594,1.876378,220.81,220.79,21.67077168]
[1731762770505,1.876378,220.81,220.77,21.67077168]
[1731762771011,1.876378,220.81,220.77,35.25077168]
[1731762771705,1.876378,220.81,220.77,21.67077168]
[1731762771909,1.876378,220.81,220.75,35.25077168]
[1731762772204,1.876378,220.81,220.78,21.67077168]
[1731762772407,1.876378,220.81,220.76,21.67077168]
[1731762773190,1.976378,220.81,220.76,21.67077168]
[1731762774101,1.876378,220.81,220.76,21.67077168]
[1731762774386,1.976378,220.81,220.76,21.67077168]
[1731762775515,1.876378,220.81,220.72,13.22883537]
[1731762775718,1.876378,220.81,220.77,21.67077168]
[1731762776014,1.976378,220.81,220.77,21.67077168]
[1731762776908,1.876378,220.81,220.77,21.67077168]
[1731762777110,1.876378,220.81,220.79,21.67077168]
[1731762778828,1.876378,220.81,220.79,13.53149154]
[1731762780219,0.517778,220.81,220.8,27.31465366]
[1731762780597,0.517778,220.81,220.8,12.87767074]
[1731762780918,0.517778,220.81,220.8,26.40916228]
[1731762782922,0.517778,220.81,220.8,50.5307009]
[1731762783097,0.517778,220.81,220.8,55.0596009]
[1731762783613,1.3581,220.89,220.8,55.0596009]
[1731762783614,1.3581,220.89,220.81,0.09367462]
[1731762783799,1.3581,220.89,220.88,13.53149154]
[1731762784210,0.90668264,221.02,220.88,39.94065382]
[1731762784211,0.1,220.98,220.88,39.94065382]
[1731762784417,0.1,220.96,220.93,13.53149154]
[1731762784621,0.1,220.96,220.92,13.53149154]
[1731762784807,0.1,220.97,220.94,13.53149154]
[1731762784991,0.1,220.97,220.95,13.53149154]
[1731762785399,1.4575,220.99,220.95,13.53149154]
[1731762785619,1.3575,220.99,220.97,13.53149154]
[1731762785797,0.1,220.97,220.89,0.34465462]
[1731762786003,0.1,220.97,220.93,26.40916228]
[1731762786616,0.1,220.97,220.91,13.53149154]
[1731762786802,0.1,220.97,220.9,13.58]
[1731762787322,0.1,220.95,220.9,13.58]
[1731762788418,0.1,220.95,220.9,27.11149154]
[1731762788609,1.3577,220.96,220.9,27.11149154]
[1731762788803,0.1,220.95,220.9,27.11149154]
[1731762789004,1.3578,220.94,220.9,27.11149154]
[1731762789809,1.3578,220.94,220.89,13.58]
[1731762790721,0.1,220.92,220.84,13.53149154]
[1731762790919,1.358,220.91,220.85,13.58]
[1731762791525,0.90668264,220.98,220.89,13.53149154]
[1731762791713,0.1,221.02,220.98,13.58]
[1731762792824,1.4573,221.02,220.98,13.58]
[1731762793125,1.3573,221.02,220.98,13.58]
[1731762793303,1.4573,221.02,220.98,13.58]
[1731762793912,0.1,221.02,221.0,13.58]
[1731762794308,0.517778,221.03,221.02,13.67367462]
[1731762794510,0.517778,221.03,221.02,13.92465462]
[1731762795129,0.517778,221.03,221.02,37.70153862]
[1731762796414,0.517778,221.03,221.02,51.23303016]
[1731762801817,1.4564,221.17,221.07,0.34465462]
[1731762802121,1.4564,221.17,221.15,13.53149154]
[1731762802318,1.4564,221.17,221.11,13.53149154]
[1731762802635,0.1,221.14,221.1,27.11149154]
[1731762803317,0.1,221.16,221.13,27.11149154]